Cogmind - Beta 16 @@@ ROGUE MODE // 2026.01.26 @ 23:50:29 Player: nailclippins Result: Destroyed by Y-45 Defender with Heavy Assault Rifle Performance ------------- Evolutions (1) 500 Regions Visited (2) 400 Robots Destroyed (25) 125 Value Destroyed (680) 680 Prototype IDs (0) 0 Alien Tech Used (0) 0 Bonus (0) 0 TOTAL SCORE: 1705 Bonus ------- None Cogmind --------- Core Integrity 0/400 Matter 300/300 Energy 39/100 System Corruption 0% Temperature Cool (0) Movement Core (50) Location -9/Materials Parts ------- > --- POWER (2) -------- (None) > --- PROPULSION (2) --- (None) > --- UTILITY (3) ------ Structural Scanner Power Shielding > --- WEAPON (2) ------- (None) > --- INVENTORY (5) ---- Light Treads Datajack Peak State ------------ > --- POWER ------------ Light Ion Engine Light Nuclear Core > --- PROPULSION ------- Aluminum Leg Improved Aluminum Leg > --- UTILITY ---------- Medium Matter Pod Light Armor Plating Light Armor Plating > --- WEAPON ----------- Heavy EM Pulse Gun Beam Cannon > --- INVENTORY -------- Light Treads Structural Scanner Power Shielding EM Pulse Gun Datajack [Rating: 13] Favorites ----------- Power Light Nuclear Core Engine Ion Engine Power Core Light Nuclear Core Propulsion Aluminum Leg Treads Light Treads Leg Aluminum Leg Wheel Wheel Hover Unit Hover Unit Utility Light Armor Plating Device Structural Scanner Storage Medium Matter Pod Protection Light Armor Plating Weapon Autogun Energy Gun EM Pulse Gun Energy Cannon Beam Cannon Ballistic Gun Autogun Special Melee Weapon Datajack Build | -11 -10 -9 ------- Run | Yrd Mat Mat Slots Evolved 2 | . . 2 Power 1 | . . 1 Propulsion . | . . . Utility 1 | . . 1 Weapon . | . . . Parts Attached 33 | 7 16 10 Power 4 | 1 2 1 Engine 3 | 1 1 1 Core 1 | . 1 . Reactor . | . . . Propulsion 9 | 3 3 3 Treads 1 | . . 1 Leg 6 | 2 3 1 Wheel 1 | 1 . . Hover 1 | . . 1 Flight . | . . . Utility 9 | 1 6 2 Device 1 | . 1 . Storage 5 | 1 4 . Processor . | . . . Hackware . | . . . Protection 3 | . 1 2 Artifact . | . . . Weapon 11 | 2 5 4 Energy Gun 4 | . 1 3 Energy Cannon 1 | . 1 . Ballistic Gun 5 | 2 2 1 Ballistic Cannon . | . . . Launcher . | . . . Special Weapon . | . . . Impact Weapon . | . . . Slashing Weapon . | . . . Piercing Weapon . | . . . Special Melee Weapon 1 | . 1 . Unidentified Prototypes . | . . . Parts Lost 10 | . . 10 Power 2 | . . 2 Propulsion 3 | . . 3 Utility 2 | . . 2 Weapon 3 | . . 3 Highest Loss Streak 7 | . . 7 To Critical Strikes . | . . . Average Backups 4 | 1 5 4 Power . | . . . Propulsion . | . . . Utility 1 | . 1 1 Weapon 1 | . 2 1 Tool/Special . | . . . Unused Backups 4 | . 2 2 Power . | . . . Propulsion 1 | . . 1 Utility . | . . . Weapon 3 | . 2 1 Tool/Special . | . . . Average Slot Usage (%) 91 | . 98 79 Engine 5 | . 6 4 Core 7 | . 7 8 Treads 1 | . . 2 Leg 22 | . 27 14 Device 2 | . 3 1 Storage 15 | . 18 11 Protection 10 | . 5 18 Energy Gun 6 | . 5 8 Energy Cannon 4 | . 4 5 Ballistic Gun 12 | . 17 3 Peak Build Rating 13 | 6 12 13 Average Rating 9 | 4 9 10 On Entrance 5 | . 6 9 Avg Prop Armor Cover (%) 16 | . . 16 Naked Turns . | . . . Heaviest Build 93 | 13 93 22 Greatest Support 23 | 20 20 23 Greatest Overweight (x) 4 | . 4 1 Average Overweight (x) . | . . . Largest Inventory Capacity 25 | 8 25 25 Average Capacity 6 | 7 7 5 Most Carried 8 | 3 8 5 Average Carried 4 | 1 5 4 Final Capacity 8 | 8 5 5 Final Carried 5 | 2 5 2 Class Distribution -------------------- 86% | Mutant 13% | Scavenger-Mutant Dominant Class ---------------- Mutant | -10/Materials Mutant | -9/Materials Resources | -11 -10 -9 ----------- Run | Yrd Mat Mat Matter Collected 912 | 193 344 375 Remotely . | . . . Salvage Created 756 | . 350 406 Parts 49 | . 26 23 Haulers Intercepted . | . . . Recyclers Shooed 1 | . 1 . Parts Field Recycled . | . . . Retrieved Matter . | . . . Parts Self-Destructed . | . . . Prevented . | . . . Parts Restored . | . . . Kills | -11 -10 -9 ------- Run | Yrd Mat Mat Combat Hostiles Destroyed 21 | . 10 11 Guns 16 | . 8 8 Cannons 4 | . 1 3 AOE 1 | . 1 . Classes Destroyed 5 | . 4 1 Tunneler 1 | . 1 . Watcher 3 | . 2 1 Swarmer 7 | . 3 4 Grunt 11 | . 7 4 Sentry 3 | . . 3 Best Kill Streak 7 | . 6 7 Combat Bots Only 5 | . 3 5 Max Kills in Single Turn 3 | . 3 2 Gunslinging 1 | . 1 . Exploded 1 | . 1 . Melee . | . . . Uniques/NPCs Destroyed . | . . . Combat | -11 -10 -9 -------- Run | Yrd Mat Mat Hostile Shots Fired 160 | . 56 104 Missed 41 | . 17 24 Hits 119 | . 39 80 Melee 11 | . . 11 Projectile 108 | . 39 69 Critical Strikes 4 | . . 4 Damage Taken 1613 | . 385 1228 Core 511 | . 109 402 Absorbed by Shields . | . . . Redirected to Shielding 23 | . . 23 Core Remaining (%) 78 | 100 56 . Volleys Fired 78 | . 36 42 Largest 2 | . 2 2 Hottest 105 | . 100 105 Shots Fired 143 | . 72 71 Gun 124 | . 66 58 Cannon 19 | . 6 13 Launcher . | . . . Special . | . . . Kinetic 84 | . 60 24 Thermal 33 | . 6 27 Explosive . | . . . Electromagnetic 26 | . 6 20 Robot Hit Streak 16 | . 7 16 Robot Miss Streak 8 | . 8 3 Penetration Max . | . . . Secondary Targets 3 | . 3 . Max Gunslinging Chain 1 | . 1 . Shots Hit Robots 86 | . 39 47 Core Hits 36 | . 16 20 Critical Kills . | . . . Critical Parts Destroyed 1 | . 1 . Critical Strikes 1 | . 1 . Destroy 1 | . 1 . Melee Attacks 2 | . 2 . Impact . | . . . Slashing . | . . . Piercing . | . . . Sneak Attacks 2 | . 2 . Combat Hostiles . | . . . Follow-up Attacks . | . . . Damage Inflicted 1592 | . 909 683 Guns 1061 | . 501 560 Cannons 175 | . 52 123 Explosions 356 | . 356 . Melee . | . . . Ramming . | . . . Kinetic 771 | . 473 298 Thermal 651 | . 408 243 Explosive . | . . . Electromagnetic 170 | . 28 142 Impact . | . . . Slashing . | . . . Piercing . | . . . Highest Corruption . | . . . Average Corruption . | . . . Corruption Purged . | . . . Corruption Blocked . | . . . Overload Shots . | . . . Overflow Damage 107 | . 107 . Projectiles . | . . . Explosions 107 | . 107 . Melee . | . . . Knockbacks . | . . . Impact . | . . . Kinetic . | . . . Secondary . | . . . Self-Inflicted Damage . | . . . Shots . | . . . Rammed . | . . . Targets Rammed . | . . . Kicked . | . . . Crushed . | . . . Highest Temperature 532 | . 234 532 Average Temperature 156 | . 54 205 Received Heat Transfer 513 | . 120 393 Effects 10 | . . 10 Shutdowns 5 | . . 5 Energy Bleed 2 | . . 2 Interference 2 | . . 2 Matter Decay 1 | . . 1 Siege Activations . | . . . Martial Activations . | . . . Shielding Activations . | . . . Robots Disrupted . | . . . Combat Hostiles . | . . . Robots Corrupted . | . . . Combat Hostiles . | . . . Parts Fried . | . . . Impact Corruptions . | . . . Robots Melted . | . . . Combat Hostiles . | . . . Parts Melted . | . . . Heat Transferred 895 | . 361 534 Parts Sabotaged . | . . . Parts Stolen . | . . . Parts Stripped . | . . . Power Chain Reactions 1 | . 1 . Alert | -11 -10 -9 ------- Run | Yrd Mat Mat Maximum Alert Level 1 | . . 1 Low Security (%) 99 | 100 100 99 Level 1 . | . . . Level 2 . | . . . Level 3 . | . . . Level 4 . | . . . Level 5 . | . . . High Security . | . . . Max Security . | . . . Peak Influence 213 | . 187 213 Initial 36 | . . 36 Average 90 | . 87 113 Influence Increases 750 | . 343 407 Destroy 0b10 Robot/C 420 | . 200 220 Destroy 0b10 Robot/NC 20 | . 15 5 Destroy Leader 106 | . 44 62 Disable Machine 30 | . 30 . Destroy Structure 24 | . 24 . Partial Spotted 30 | . 15 15 Lose Combat Pursuer 120 | . 15 105 Influence Decreases 605 | . 256 349 Entered New Map 51 | . . 51 Time Decay 454 | . 256 198 Lost Part 100 | . . 100 Squads Dispatched 4 | . 2 2 Investigation . | . . . Extermination . | . . . Reinforcement 4 | . 2 2 Assault . | . . . Garrison . | . . . Intercept . | . . . Searches Triggered . | . . . Construction Impeded . | . . . Haulers Reinforced . | . . . Active Scanning Responses . | . . . Cargo Convoy Interrupts . | . . . Stealth | -11 -10 -9 --------- Run | Yrd Mat Mat Distress Signals 1 | . . 1 Communications Jammed . | . . . Distress Signals . | . . . Times Spotted 41 | . 15 26 Peak Tracking Total 6 | . 6 6 Tactical Retreats 5 | . 1 4 Traps | -11 -10 -9 ------- Run | Yrd Mat Mat Traps Triggered 1 | . 1 . Indirectly . | . . . Trap Hack Attempts . | . . . Triggered . | . . . Disarmed . | . . . Reprogrammed . | . . . Reused . | . . . Traps Extracted . | . . . Installed . | . . . Triggered . | . . . Machines | -11 -10 -9 ---------- Run | Yrd Mat Mat Machines Disabled 2 | . 2 . Max in Single Turn 2 | . 2 . Machines Repaired . | . . . Machines Dismantled . | . . . Machines Sabotaged . | . . . Overloaded Fab Kills . | . . . Hacking | -11 -10 -9 --------- Run | Yrd Mat Mat Machines Accessed 1 | . 1 . Terminals 1 | . 1 . Fabricators . | . . . Repair Stations . | . . . Recycling Units . | . . . Scanalyzers . | . . . Garrison Access . | . . . Total Hacks 3 | . 3 . Successful 1 | . 1 . Failed 2 | . 2 . Catastrophic 1 | . 1 . Database Lockouts . | . . . Manual . | . . . Terminals 3 | . 3 . Fabricators . | . . . Repair Stations . | . . . Recycling Units . | . . . Scanalyzers . | . . . Garrison Access . | . . . Terminal Hacks 1 | . 1 . Alert Level 1 | . 1 . Fabricator Hacks . | . . . Repair Station Hacks . | . . . Recycling Unit Hacks . | . . . Scanalyzer . | . . . Garrison Access Hacks . | . . . Unauthorized Hacks . | . . . Terminals . | . . . Fabricators . | . . . Repair Stations . | . . . Recycling Units . | . . . Scanalyzers . | . . . Garrison Access . | . . . Data Cores Recovered . | . . . Used . | . . . Hacking Detections 1 | . 1 . Full Trace Events 1 | . 1 . Feedback Events . | . . . Feedback Blocked . | . . . Robot Schematics Acquired . | . . . Robots Built . | . . . Authchips . | . . . Time . | . . . Total Robot Build Rating . | . . . Part Schematics Acquired . | . . . Parts Built . | . . . Authchips . | . . . Time . | . . . Total Part Build Rating . | . . . Part Studies Acquired . | . . . Parts Repaired . | . . . Time . | . . . Parts Recycled . | . . . Recycled Matter . | . . . Retrieved Matter . | . . . Retrieved Components . | . . . Parts Scanalyzed . | . . . Part Schematics Acquired . | . . . Parts Damaged . | . . . Bothacking | -11 -10 -9 ------------ Run | Yrd Mat Mat Used RIF Installer . | . . . Robots Hacked 1 | . 1 . Non-combat 1 | . 1 . Combat . | . . . Robot Hacks Applied 2 | . 2 . parse_system 1 | . 1 . no_distress 1 | . 1 . Relay Couplers Released . | . . . Fabnet Peak Effective % . | . . . Robots Rewired . | . . . Allies Hacked . | . . . Hacks Repelled . | . . . Allies | -11 -10 -9 -------- Run | Yrd Mat Mat Total Allies . | . . . Largest Group . | . . . Highest-Rated Group . | . . . Highest-Rated Ally . | . . . Total Orders . | . . . Ally Attacks . | . . . Total Damage . | . . . Kills . | . . . Allies Corrupted . | . . . Allies Melted . | . . . Intel | -11 -10 -9 ------- Run | Yrd Mat Mat Active Infowar (turns) 234 | . 193 41 Structural 234 | . 193 41 Robot Analysis Total . | . . . Derelict Logs Recovered . | . . . Drone Launches . | . . . Drone Recoveries . | . . . Exploration | -11 -10 -9 ------------- Run | Yrd Mat Mat Turns Passed 1213 | 73 730 410 Spaces Moved 762 | 52 447 263 Core 75 | 9 . 66 Treads 32 | . . 32 Legs 590 | 34 447 109 Wheels 9 | 9 . . Hover 56 | . . 56 Flight . | . . . Fastest Speed 50 | 50 120 50 Average Speed 114 | 100 125 98 Slowest Speed 400 | 120 400 160 Overloaded Moves . | . . . Propulsion Burnouts . | . . . Robots Hopped . | . . . Potential Cave-ins . | . . . Cave-ins Triggered . | . . . Exploration Rate (%) 29 | 4 67 18 Regions Visited 2 Branch Regions . Pre-discovered Areas . | . . . Known Exits Taken . | . . . Unknown Exits Taken 2 | 1 1 . Scrap Searched . | . . . Spaces Dug . | . . . Terrain Destroyed 21 | . 21 . Melee . | . . . Projectile . | . . . AOE 21 | . 21 . Terrain Rammed . | . . . Walls Destroyed . | . . . Machines Disabled . | . . . Actions | -11 -10 -9 --------- Run | Yrd Mat Mat Total 970 | 72 556 342 Wait 33 | 6 17 10 Move 760 | 51 446 263 Hop . | . . . Pick Up 32 | 8 19 5 Fast Attach 4 | . . 4 Attach 17 | 6 5 6 Detach 1 | . . 1 Swap 21 | 1 16 4 Drop 22 | . 15 7 Fire 78 | . 36 42 Melee 2 | . 2 . Ram . | . . . Kick . | . . . Crush . | . . . Escape Stasis . | . . . Rewire . | . . . Trap . | . . . Miscellaneous . | . . . Route ------- -11/Scrapyard -10/Materials (discovered 2 exits: [*Mat] / [*Min]) -9/Materials History --------- Turn | Location | Event 31 | -11/Scrapyard | Discovered new exit (range 15) 74 | -11/Scrapyard | Entered Materials 308 | -10/Materials | Build established: Mutant 340 | -10/Materials | Discovered new exit (range 7) 775 | -10/Materials | Discovered new exit (range 16) 804 | -10/Materials | Entered another Materials area 804 | -9/Materials | Evolved 2 slots: Power x1, Utility x1 1164 | -9/Materials | Lost 7 parts (2p2n1u2w) 1198 | -9/Materials | Core integrity fell below 50% 1209 | -9/Materials | Core integrity fell below 20% 1214 | -9/Materials | Destroyed by Y-45 Defender with Heavy Assault Rifle Last Messages --------------- 01080_ G-34 Mercenary destroyed. 01083_ Acquired 31 matter. 01093_ Critical hit (Burn: +37). 01100_ Sml. Laser destroyed. 01100_ Lgt. Armor Plating destroyed. 01105_ Lgt. Treads destroyed. 01107_ Lgt. Nuclear Core destroyed. 01112_ Hvy. Assault Rifle destroyed. 01112_ Lgt. Ion Engine destroyed. 01128_ M-13 Machinist repairs L-31 Rogue. 01133_ Imp. Aluminum Leg destroyed. 01134_ K-01 Serf collects debris. 01143_ Acquired 50 matter. 01144_ Acquired Hover Unit. 01170_ Acquired Hvy. EM Pulse Gun. [Achievement: There's More Where That Came From] 01197_ Hvy. EM Pulse Gun severed. 01202_ Hover Unit destroyed. 01208_ Med. Matter Pod destroyed. 01208_ EM Pulse Gun destroyed. Map ----- +----------------------------------------------------+ | ??????????????## """ + # # | | ??????????????## """ # # """# | | ??????????????## """ # + """# | | ??????????????## # # """# | | ######????????## # # # | | #????????## # # """# | | """""#????????########## # """# | | """""#????????########## # """# | | """""#????????????????## # # | | """""#????????????????## ######## | | """""#????????????????## # # | | """""#????????????????## # """ # | | """""#????????????????## [ # "Y" # | | #?????############# # " " # | | ######???###############Y # # | | ?????????# g # """ # | | ########## + """ # | | ! l# """ # | | ########## ########### # # | | ?????????# ########### #! """ # | | ?????????# #????????## # !""" # | | ?????????# #????????## # """ # | | ?????????# #???????? # #[= # | | ?????????# #???????? # ###### # | | ?????????# #???????? # ##???### | | ?????????# #???????? # @ # ?????? | | ?????????# #???????? # # ?????? | | ?????????# #???????? # # ?????? | | ?????????# #????????## ; ?????? | | ?????????# ???????? # ?????? | | ?????????+ ????????? # ???? | | ?????????# ??????? ####???? | | ?????????? #???????##########???? | | ?????????? ???????? ###?????? | | ?????????? ?????????????????????? | | ??????????????????????????????????? | | ??????????????????????????????????? | | ??????????????????????????????????? | | ??????????????????????????????????? | | ??????????????????????????????????? | | ??????????????????????????????????? | | ??????????????????????????????????? | | ??????????????????????????????????? | | ??????????????????????????????????? | | ??????????????????????????????????? | | ??????????????????????????????????? | | ??????????????????????????????????? | | ??????????????????????????????????? | | ??????????????????????????????????? | | ??????????????????????????????????? | +----------------------------------------------------+ Best States ------------- Heat Dissipation 28 Energy Generation 19 Energy Capacity 400 Matter Stores 320 Matter Capacity 400 Sight Range 16 Terrain Scan Density 10 Armor Coverage 300 Power Shielding 33 Evasion (%) 55 Recoil Reduction 1 Item Schematics ----------------- None Robot Schematics ------------------ None Fabricated ------------ Nothing Repaired ---------- Nothing Studied --------- None Alien Tech Used ----------------- None Achievements -------------- DATA ERROR: Steam Global Achievement% Junior Dev Organ Harvest Overwhelming There's More Where That Came From Well Done Challenges ------------ None Game ------ Seed ArmageddonSignalJammer Manual? 0 Play Time 00:28:26 Cumulative 3.7 hours Start 2026.01.26 @ 23:23:10 End 2026.01.26 @ 23:50:29 Sessions 1 Manual Loads 0 Difficulty Rogue Special Mode None Game No. 9 Rogue 9 Adventurer 0 Explorer 0 Win Type - Total 0 Types 0/0/0/0/0/0/0/0/0/0 Lore% 7 Gallery% 8 Achievement% 6 Wizard Run 0 Options --------- Layout 1 ASCII 0 Keyboard 0 Movement Mouse Keybinds 0 Fullscreen 1 Font 24/Smallcaps Map View 50x35 Zoom Use 0% Tactical HUD 1 Map Filters NONE Filters NONE Steam 1 RUN: 0ae9471a-33c5-4d67-bae8-0e0d3f1f1665